Cogmind - Beta 12 @@@ ROGUE MODE // 2023.04.11 @ 17:34:42 Player: btmk16 Result: Destroyed by H-88 Terminator with KE Penetrator Performance ------------- Evolutions (9) 4500 Regions Visited (32) 6400 Robots Destroyed (314) 1570 Value Destroyed (14989) 14989 Prototype IDs (80) 1600 Alien Tech Used (2) 400 Bonus (7912) 7912 TOTAL SCORE: 37371 Bonus ------- High Alert Combat Kills 566 Follower Combat Kills 1228 Aligned with FarCom 300 Met Data Miner 300 Met Imprinter 300 Destroyed Z-Imprinter 1000 Triggered Deep Caves Wall 500 Exposed GOLEM Chamber 500 Met Zhirov 300 Met Warlord at Base 500 MAIN.C Attacked Warlord 500 Warlord Defense Kills 580 Met Warlord at Research 2000 Friendly Fire -662 Cogmind --------- Core Integrity 0/1600 Matter 295/300 Energy 100/100 System Corruption 19% Temperature Cool (0) Movement Rolling (130) Ox2 Location -1/Command Parts ------- > --- POWER (3) -------- (None) > --- PROPULSION (5) --- Centrium Wheel > --- UTILITY (14) ----- Layered Heavy Armor Plating Layered Heavy Armor Plating > --- WEAPON (3) ------- (None) > --- INVENTORY (5) ---- (None) Peak State ------------ > --- POWER ------------ Assembled Flux Generator Light Quantum Reactor > --- PROPULSION ------- Enhanced Biometal Leg Assembled Alloy Leg Assembled Alloy Leg High-density Centrium Leg High-density Centrium Leg > --- UTILITY ---------- Assembled Nanovents Assembled Nanovents High-capacity Storage Unit Assembled Biocell Array Experimental Optical Array Assembled Combat Suite Advanced Targeting Computer Experimental Targeting Computer Assembled Alloy Armor Advanced Hacking Suite Advanced Hacking Suite Advanced System Shield GOLEM Unit > --- WEAPON ----------- Assembled Focal Cannon Enhanced Nova Cannon Enhanced Nova Cannon > --- INVENTORY -------- Micro Antimatter Reactor Vortex Chain Reactor Enhanced Biometal Leg Enhanced Biometal Leg Centrium Leg High-density Centrium Leg High-density Centrium Leg Compact Battery Experimental Energy Well Improved Heavy Armor Plating Layered Heavy Armor Plating Layered Heavy Armor Plating Ghost Barrier System Purifier Enhanced Nova Cannon Makeshift Sword [Rating: 212] Favorites ----------- Power Reinforced Fission Core Engine Ion Engine Power Core Reinforced Fission Core Reactor Assembled Flux Generator Propulsion Assembled Alloy Leg Treads Armored Treads Leg Assembled Alloy Leg Wheel Wheel Hover Unit Zionite Glidesys I Utility GOLEM Unit Device GOLEM Unit Storage Assembled Biocell Array Processor Improved Targeting Computer Hackware Advanced Hacking Suite Protection Hardened Medium Armor Plating Weapon Assembled Focal Cannon Energy Gun Heavy EM Shotgun Energy Cannon Assembled Focal Cannon Ballistic Gun Light Assault Rifle Ballistic Cannon Mini Assault Cannon Launcher Rocket Array Special Weapon RU-N14's Throwing Claymores Impact Weapon Makeshift Hammer Slashing Weapon Ripper Piercing Weapon Makeshift Spear Build | -11 -10 -10 -10 -9 -8 -7 -7 -7 -7 -7 -7 -7 -6 -6 -6 -6 -6 -5 -5 -5 -5 -5 -4 -4 -4 -4 -4 -3 -3 -2 -1 -1 ------- Run | Jun Mat Min Exi Min Mat Fac Was Fac Low Low Zio Dee Pro Fac Low Low Dat Pro Fac Upp Upp Zhi Pro Fac Upp Upp War Pro Res Res Acc Com Slots Evolved 18 | . . . . . 4 2 . . . . . . . 2 . . . . 2 . . . . 2 . . . . 2 2 2 . Power 2 | . . . . . . . . . . . . . . 1 . . . . . . . . . . . . . . . . 1 . Propulsion 3 | . . . . . 1 1 . . . . . . . . . . . . . . . . . . . . . . . . 1 . Utility 12 | . . . . . 2 1 . . . . . . . 1 . . . . 2 . . . . 2 . . . . 2 2 . . Weapon 1 | . . . . . 1 . . . . . . . . . . . . . . . . . . . . . . . . . . . Parts Attached 251 | 8 3 12 . . 30 16 9 13 7 1 10 38 2 . . . 1 2 1 3 2 3 9 18 6 . 8 3 9 14 4 19 Power 15 | 1 1 . . . 2 . 1 . . . . 5 . . . . . . . . . . . . . . 1 . . . 2 2 Engine 4 | 1 1 . . . 2 . . . . . . . . . . . . . . . . . . . . . . . . . . . Core 3 | . . . . . . . 1 . . . . 2 . . . . . . . . . . . . . . . . . . . . Reactor 8 | . . . . . . . . . . . . 3 . . . . . . . . . . . . . . 1 . . . 2 2 Propulsion 70 | 2 . 1 . . 10 7 1 4 2 . 2 6 . . . . . 2 1 . 2 . 2 9 2 . 2 1 2 5 1 6 Treads 14 | 2 . 1 . . . 2 1 2 2 . 2 2 . . . . . . . . . . . . . . . . . . . . Leg 40 | . . . . . 1 2 . . . . . 3 . . . . . 2 1 . 2 . 2 9 2 . 2 1 2 5 1 5 Wheel 15 | . . . . . 9 3 . 2 . . . . . . . . . . . . . . . . . . . . . . . 1 Hover 1 | . . . . . . . . . . . . 1 . . . . . . . . . . . . . . . . . . . . Flight . | . . . . . . . . . . . . . . . . . . . . . . . . . . . . . . . . . Utility 79 | 2 1 . . . 7 4 2 4 . . . 11 . . . . . . . 3 . 3 3 8 4 . 5 2 7 5 . 8 Device 23 | 1 . . . . 3 . 1 2 . . . 5 . . . . . . . 2 . 2 2 2 1 . 1 . 1 . . . Storage 14 | 1 1 . . . 3 . . . . . . 3 . . . . . . . . . . . 2 2 . . . 1 . . 1 Processor 7 | . . . . . . 1 . . . . . . . . . . . . . . . . . . . . 1 1 . 4 . . Hackware 6 | . . . . . . . . . . . . . . . . . . . . . . 1 . . . . . . . . . 5 Protection 29 | . . . . . 1 3 1 2 . . . 3 . . . . . . . 1 . . 1 4 1 . 3 1 5 1 . 2 Artifact . | . . . . . . . . . . . . . . . . . . . . . . . . . . . . . . . . . Weapon 87 | 3 1 11 . . 11 5 5 5 5 1 8 16 2 . . . 1 . . . . . 4 1 . . . . . 4 1 3 Energy Gun 8 | . . . . . 5 1 . . 1 . 1 . . . . . . . . . . . . . . . . . . . . . Energy Cannon 8 | . . . . . . . 1 . 1 . . 2 . . . . . . . . . . . . . . . . . . 1 3 Ballistic Gun 18 | 3 . 8 . . 3 4 . . . . . . . . . . . . . . . . . . . . . . . . . . Ballistic Cannon 20 | . . . . . 1 . 4 3 1 1 2 5 1 . . . 1 . . . . . 1 . . . . . . . . . Launcher 14 | . 1 3 . . 2 . . 2 2 . . 1 1 . . . . . . . . . 2 . . . . . . . . . Special Weapon 4 | . . . . . . . . . . . 1 1 . . . . . . . . . . 1 1 . . . . . . . . Impact Weapon 6 | . . . . . . . . . . . 2 3 . . . . . . . . . . . . . . . . . 1 . . Slashing Weapon 5 | . . . . . . . . . . . . 3 . . . . . . . . . . . . . . . . . 2 . . Piercing Weapon 4 | . . . . . . . . . . . 2 1 . . . . . . . . . . . . . . . . . 1 . . Special Melee Weapon . | . . . . . . . . . . . . . . . . . . . . . . . . . . . . . . . . . Unidentified Prototypes 28 | . . . . . 2 . 1 2 . . 1 9 . . . . . . . . . 2 . 1 . . 4 . . 5 . 1 Parts Lost 85 | . . 2 . . 14 5 . 4 2 . . 4 . . . 1 . . . 2 . . 9 12 1 . 2 4 3 . . 20 Power 6 | . . . . . 1 . . . . . . . . . . . . . . . . . 1 . . . . . . . . 4 Propulsion 23 | . . 1 . . 5 2 . . 2 . . 1 . . . . . . . . . . 2 5 . . . 1 . . . 4 Utility 35 | . . . . . 4 . . 3 . . . 2 . . . 1 . . . 2 . . 3 5 1 . 1 2 3 . . 8 Weapon 21 | . . 1 . . 4 3 . 1 . . . 1 . . . . . . . . . . 3 2 . . 1 1 . . . 4 Highest Loss Streak 17 | . . 2 . . 9 3 . 2 2 . . 3 . . . 1 . . . 1 . . 4 9 1 . 2 4 2 . . 17 To Critical Strikes . | . . . . . . . . . . . . . . . . . . . . . . . . . . . . . . . . . Average Slot Usage (%) 83 | . 100 99 100 100 92 95 93 91 91 92 84 78 61 69 72 73 53 71 76 76 76 73 70 85 67 89 87 88 86 85 87 79 Engine 1 | . 14 14 14 14 7 7 1 . . . . . . . . . . . . . . . . . . . . . . . . . Core 2 | . . . . . . . 5 7 7 7 7 6 7 . . . . . . . . . . . . . . . . . . . Reactor 2 | . . . . . . . . . . . . . . 6 6 6 6 6 5 5 5 5 4 4 4 5 5 5 4 4 7 6 Treads 8 | . 28 27 28 28 1 3 5 7 17 23 24 17 . . . . . . . . . . . . . . . . . . . . Leg 12 | . . . . . . 2 . . . . . 11 30 26 26 26 26 25 23 23 23 23 19 20 19 21 20 20 19 16 20 17 Wheel 2 | . . . . . 22 19 18 14 5 . . . . . . . . . . . . . . . . . . . . . . . Device 13 | . 14 14 14 14 14 7 7 13 15 15 15 10 7 6 6 6 6 6 17 15 17 14 10 22 18 21 16 14 15 19 16 11 Storage 9 | . 14 14 14 14 16 15 15 7 7 7 7 7 7 12 13 13 13 13 11 11 11 11 9 8 7 10 10 10 9 8 8 7 Processor 4 | . . . . . . 7 7 7 7 7 7 3 . . . . . . . . . . . . . . 3 10 9 11 16 11 Protection 5 | . . . . . 1 6 7 7 7 7 7 3 . . . . . . . 1 . . 1 7 6 15 15 10 13 11 8 4 Energy Gun 1 | . . . . . 21 9 . . 5 . . . . . . . . . . . . . . . . . . . . . . . Energy Cannon 9 | . . . . . . . 5 7 9 15 . 9 . 15 19 20 . 19 17 17 17 14 13 13 9 15 13 14 14 10 8 6 Ballistic Gun 2 | . 28 27 28 28 4 11 6 . . . . . . . . . . . . . . . . . . . . . . . . . Ballistic Cannon 2 | . . . . . . . 9 14 6 7 2 2 7 . . . . . . . . . . . . . . . . . . . Naked Turns 52 | . . . . . . . . . . . . . . . . . . . . . . . . 7 3 . . . . . . 42 Heaviest Build 172 | 15 31 31 28 28 108 114 139 139 135 140 172 172 87 107 92 92 107 107 94 98 96 96 120 141 117 117 117 114 152 159 158 156 Greatest Support 172 | 40 40 40 40 40 36 48 48 28 110 110 110 112 112 112 112 112 112 112 104 104 104 104 105 110 130 130 130 110 133 144 172 172 Greatest Overweight (x) 5 | . . 1 . . 3 5 4 4 4 1 2 2 . . . . . . . . 1 . 1 1 . . 1 1 1 1 . 2 Average Overweight (x) . | . . . . . 2 3 3 4 2 1 1 . . . . . . . . . . . . . . . . . . . . . Largest Inventory Capacity 40 | 8 15 15 15 15 25 25 25 25 25 25 25 40 40 40 40 40 40 40 40 40 40 40 40 20 10 10 10 10 20 20 20 20 Average Capacity 25 | 7 13 15 15 15 21 25 25 25 25 25 25 31 40 40 40 40 40 40 40 40 40 40 30 11 9 10 10 10 19 20 20 18 Most Carried 40 | 6 15 15 15 15 22 21 25 25 25 25 25 40 38 40 40 40 40 40 40 40 40 40 40 11 6 10 10 10 19 20 20 20 Average Carried 23 | 4 11 14 14 15 17 19 24 24 24 25 24 29 37 39 39 40 39 39 39 39 39 39 29 5 2 8 9 9 16 19 19 17 Final Capacity 40 | 8 15 15 15 15 25 25 25 25 25 25 25 40 40 40 40 40 40 40 40 40 40 40 5 5 10 10 10 10 20 20 20 5 Final Carried 40 | 6 15 15 15 15 22 20 25 25 25 25 25 38 38 40 40 40 37 40 40 39 39 40 4 5 6 9 10 9 19 19 20 . Class Distribution -------------------- 28% | Hauler-Golem 22% | Golem 19% | Gunner 13% | Mutant 5% | Scavenger-Skirmisher 3% | Scavenger-Mutant Dominant Class ---------------- Mutant | -10/Materials Scavenger-Mutant | -10/Mines Scavenger-Mutant | -10/Exiles Scavenger-Skirmisher | -9/Mines Scavenger-Skirmisher | -8/Materials Scavenger-Skirmisher | -7/Factory Skirmisher | -7/Waste Gunner | -7/Factory Gunner | -7/Lower Caves Gunner | -7/Lower Caves Mutant | -7/Zion Hauler-Golem | -7/Deep Caves Hauler-Golem | -6/Proximity Caves Hauler-Golem | -6/Factory Hauler-Golem | -6/Lower Caves Hauler-Golem | -6/Lower Caves Hauler-Golem | -6/Data Miner Hauler-Golem | -5/Proximity Caves Hauler-Golem | -5/Factory Hauler-Golem | -5/Upper Caves Hauler-Golem | -5/Upper Caves Hauler-Golem | -5/Zhirov Hauler-Golem | -4/Proximity Caves Golem | -4/Factory Golem | -4/Upper Caves Golem | -4/Upper Caves Golem | -4/Warlord Derelict-Golem | -3/Proximity Caves Golem | -3/Research Golem | -2/Research Golem | -1/Access Hacker-Mutant | -1/Command Resources | -11 -10 -10 -10 -9 -8 -7 -7 -7 -7 -7 -7 -7 -6 -6 -6 -6 -6 -5 -5 -5 -5 -5 -4 -4 -4 -4 -4 -3 -3 -2 -1 -1 ----------- Run | Jun Mat Min Exi Min Mat Fac Was Fac Low Low Zio Dee Pro Fac Low Low Dat Pro Fac Upp Upp Zhi Pro Fac Upp Upp War Pro Res Res Acc Com Matter Collected 4564 | 260 306 201 . 25 501 227 247 492 326 134 138 550 50 . . 9 . 30 10 30 . 60 145 155 84 . 80 10 65 190 40 199 Remotely . | . . . . . . . . . . . . . . . . . . . . . . . . . . . . . . . . . Salvage Created 16236 | 94 427 91 . . 1431 443 . 728 349 257 . 1250 312 224 513 469 . 605 162 484 342 155 938 1429 636 869 253 712 1634 413 129 887 Parts 709 | 3 38 13 . . 68 10 . 31 14 7 . 37 17 16 17 21 . 26 2 14 18 2 23 68 21 27 19 32 96 19 10 40 Haulers Intercepted 7 | . 1 . . . 2 . . 1 . . . . . 1 . . . . . . . . . 1 . . . . 1 . . . Recyclers Shooed 2 | . 1 . . . 1 . . . . . . . . . . . . . . . . . . . . . . . . . . . Parts Field Recycled . | . . . . . . . . . . . . . . . . . . . . . . . . . . . . . . . . . Retrieved Matter . | . . . . . . . . . . . . . . . . . . . . . . . . . . . . . . . . . Parts Self-Destructed 237 | . . . . . . . . . 13 7 1 . 13 . 22 21 . 27 . 13 22 2 18 . 19 27 . 32 . . . . Prevented 3 | . . . . . . . . . . . . . . . . 3 . . . . . . . . . . . . . . . . Kills | -11 -10 -10 -10 -9 -8 -7 -7 -7 -7 -7 -7 -7 -6 -6 -6 -6 -6 -5 -5 -5 -5 -5 -4 -4 -4 -4 -4 -3 -3 -2 -1 -1 ------- Run | Jun Mat Min Exi Min Mat Fac Was Fac Low Low Zio Dee Pro Fac Low Low Dat Pro Fac Upp Upp Zhi Pro Fac Upp Upp War Pro Res Res Acc Com Combat Hostiles Destroyed 305 | . 8 12 . . 20 4 . 19 9 6 . 56 11 1 10 10 . 12 2 6 8 . 20 18 8 11 4 12 19 8 1 10 Guns 26 | . 8 2 . . 11 3 . . 2 . . . . . . . . . . . . . . . . . . . . . . . Cannons 191 | . . . . . 2 . . 12 3 6 . 14 7 1 10 10 . 12 2 6 8 . 14 13 8 11 4 12 19 8 1 8 AOE 81 | . . 10 . . 6 1 . 7 3 . . 39 4 . . . . . . . . . 6 5 . . . . . . . . Classes Destroyed 26 | 2 6 . . . 3 . . 4 1 . . 5 . . . . . 2 . . . . . . . . . . . 3 . . Worker 11 | . 2 . . . 4 . . . . . . . . 1 . . . . . . . . . 1 . . . . . . . 3 Builder 11 | . 1 . . . 3 . . 1 . . . . . . . . . . . . . . . 3 . . . . 2 . 1 . Tunneler 2 | 1 1 . . . . . . . . . . . . . . . . . . . . . . . . . . . . . . . Hauler 7 | . 1 . . . 2 . . 1 . . . . . 1 . . . . . . . . . 1 . . . . 1 . . . Recycler 8 | 1 . . . . 2 2 . . . . . . . . . . . . . . . . . 3 . . . . . . . . Mechanic 2 | . . . . . . . . 1 . . . . . . . . . . . . . . . . . . . . . . . 1 Operator 3 | . . . . . . . . . . . . . . 1 . . . . . . . . . 2 . . . . . . . . Drone 2 | . . . . . . . . . . . . . . . . . . 2 . . . . . . . . . . . . . . Watcher 12 | . 2 . . . 2 1 . 1 . . . . . 1 . . . . . . . . . . . . . . 2 1 1 1 Swarmer 63 | . 3 12 . . . . . 4 1 . . . 7 . 3 4 . . . . 7 . 8 4 . 1 . 5 . 4 . . Grunt 91 | . 5 . . . 14 3 . 6 5 4 . . 4 . 5 5 . 6 . 2 . . 2 5 7 7 2 5 4 . . . Brawler 10 | . . . . . 1 . . 2 . 1 . . . . 1 1 . 1 . 1 . . . . . 2 . . . . . . Duelist 7 | . . . . . . . . 3 1 1 . . . . . . . . . . . . 1 . . . . 1 . . . . Sentry 20 | . . . . . 3 1 . 2 1 . . . . . 1 . . 1 1 . 1 . . 1 1 1 . 1 4 . . 1 Demolisher 1 | . . . . . . . . . . . . . . . . . . . . . . . . . . . . . . 1 . . Specialist 4 | . . . . . 2 . . . . . . . . . . . . . . . . . . . . . . . 2 . . . Hunter 15 | . . . . . . . . 1 . . . . . . . . . 1 . 3 . . 4 6 . . . . . . . . Programmer 19 | . . . . . . . . 1 . . . . . 1 . . . . . . . . . 2 . . 2 . 9 . 1 3 Behemoth 1 | . . . . . . . . . . . . . . . . . . 1 . . . . . . . . . . . . . . Striker 2 | . . . . . . . . . . . . . . . . . . . . . . . . . . . . . . 2 . . Executioner 1 | . . . . . . . . . . . . . . . . . . . . . . . . . . . . . . 1 . . Z-Technician 1 | . . . . . . . . . . . . 1 . . . . . . . . . . . . . . . . . . . . Z-Light 9 | . . . . . . . . . . . . 9 . . . . . . . . . . . . . . . . . . . . Assembler 2 | . . . . . . . . . . . . 2 . . . . . . . . . . . . . . . . . . . . Assembled 41 | . . . . . . . . . . . . 41 . . . . . . . . . . . . . . . . . . . . Golem 11 | . . . . . . . . . . . . 5 . . . . . . 1 . . . 5 . . . . . . . . . Surgeon 1 | . . . . . . . . 1 . . . . . . . . . . . . . . . . . . . . . . . . Guerrilla 3 | . . . . . . . . . . . . . . . . . . . . . . . . . . . . . . . . 3 Wizard 1 | . . . . . . . . . . . . . . . . . . . . . . . . . . . . . . . . 1 Mutant 3 | . . . . . . . . . 1 . . . . . . . . . . . . . . . . . . . . . . 2 Best Kill Streak 40 | 1 3 3 . . 7 3 . 11 4 3 . 40 4 2 5 3 . 3 1 3 4 . 4 9 4 4 2 5 4 4 2 3 Combat Bots Only 38 | . 3 3 . . 5 3 . 9 4 3 . 38 4 1 5 3 . 3 1 3 4 . 4 4 4 4 2 5 4 4 1 2 Max Kills in Single Turn 21 | 1 1 2 . . 2 2 . 4 2 2 . 21 4 1 1 1 . 1 1 1 2 . 4 4 2 1 1 1 1 1 1 1 Gunslinging 1 | . . . . . 1 . . . . . . . . . . . . . . . . . . . . . . . . . . . Exploded 21 | . . 2 . . 1 1 . 3 2 . . 21 4 . . . . . . . . . 4 1 . . . . . . . . Melee . | . . . . . . . . . . . . . . . . . . . . . . . . . . . . . . . . . Uniques/NPCs Destroyed 1 | . . . . . . . . . . . . 1 . . . . . . . . . . . . . . . . . . . . Z-Imprinter (-7/Deep Caves) Combat | -11 -10 -10 -10 -9 -8 -7 -7 -7 -7 -7 -7 -7 -6 -6 -6 -6 -6 -5 -5 -5 -5 -5 -4 -4 -4 -4 -4 -3 -3 -2 -1 -1 -------- Run | Jun Mat Min Exi Min Mat Fac Was Fac Low Low Zio Dee Pro Fac Low Low Dat Pro Fac Upp Upp Zhi Pro Fac Upp Upp War Pro Res Res Acc Com Damage Taken 25499 | . 379 259 . . 1336 468 38 1263 358 47 . 1580 214 52 384 785 . 900 226 468 377 . 2098 3212 333 586 1224 1177 1205 277 20 6233 Core 4031 | . 32 33 . . 261 31 . 82 43 16 . 178 45 . 60 75 . 134 111 58 45 . 291 653 18 22 75 89 21 55 . 1603 Absorbed by Shields . | . . . . . . . . . . . . . . . . . . . . . . . . . . . . . . . . . Reduced by Siege Mode 48 | . . . . . . . . 36 12 . . . . . . . . . . . . . . . . . . . . . . . Redirected to Shielding 144 | . . . . . . . . . . . . 144 . . . . . . . . . . . . . . . . . . . . Regen/Repaired (Parts) 477 | . . . . . . . 399 18 . . . . . . . . . . . . . . . . . . 60 . . . . . Core Remaining (%) 66 | 100 . . . 74 52 . . . . . . . 43 . . . . 68 . . . . 49 . . . . 17 98 96 . . Volleys Fired 745 | 10 39 21 . . 68 18 12 39 17 9 1 61 1 22 19 20 . 24 8 19 26 6 50 49 13 22 7 31 74 15 3 41 Largest 3 | 2 2 2 . . 3 3 3 3 3 3 1 2 1 3 3 3 . 3 3 3 3 1 3 3 3 3 3 3 3 3 2 3 Hottest 265 | 40 40 40 . . 150 150 111 136 169 162 81 138 45 75 75 75 . 75 75 75 75 25 75 75 75 75 75 75 75 75 145 265 Shots Fired 1697 | 20 78 30 . . 175 50 36 102 47 27 1 107 24 34 39 48 . 70 14 50 72 6 101 87 38 58 21 82 159 33 6 82 Gun 370 | 20 78 18 . . 167 50 21 . 15 . 1 . . . . . . . . . . . . . . . . . . . . . Cannon 1277 | . . . . . 3 . 15 99 30 27 . 94 23 34 39 48 . 70 14 50 72 6 97 77 38 58 21 82 159 33 6 82 Launcher 34 | . . 12 . . 5 . . 3 2 . . 7 1 . . . . . . . . . 4 . . . . . . . . . Special 16 | . . . . . . . . . . . . 6 . . . . . . . . . . . 10 . . . . . . . . Kinetic 439 | 20 78 18 . . 94 26 30 63 15 9 . 37 23 2 . . . 9 . . . . 15 . . . . . . . . . Thermal 1083 | . . . . . . . 6 36 30 18 1 32 . 32 39 48 . 61 14 50 72 6 82 77 38 58 21 82 159 33 6 82 Explosive 50 | . . 12 . . 5 . . 3 2 . . 13 1 . . . . . . . . . 4 10 . . . . . . . . Electromagnetic 125 | . . . . . 76 24 . . . . . 25 . . . . . . . . . . . . . . . . . . . . Robot Hit Streak 41 | 10 11 5 . . 15 9 8 20 16 6 . 11 3 4 12 11 . 9 10 6 4 5 19 8 15 25 16 29 13 11 2 41 Robot Miss Streak 8 | 2 3 3 . . 8 3 2 5 5 1 . 5 4 3 2 7 . 4 1 3 1 1 4 6 1 1 1 2 4 2 2 2 Penetration Max . | . . . . . . . . . . . . . . . . . . . . . . . . . . . . . . . . . Secondary Targets 5 | . . 2 . . 2 1 . . . . . . . . . . . . . . . . . . . . . . . . . . Max Gunslinging Chain 1 | . . 1 . . 1 1 . . . . . . . . . . . . . . . . . . . . . . . . . . Autonomous 89 | . . . . . 3 . . . . . . 37 23 2 . . . 9 . . . . 15 . . . . . . . . . Shots Hit Robots 1019 | 15 56 14 . . 117 35 27 49 31 17 . 65 13 14 30 24 . 40 11 26 17 5 71 49 26 45 14 42 73 20 3 70 Core Hits 688 | 3 22 15 . . 69 18 5 61 21 7 . 162 10 6 12 11 . 15 6 12 10 2 45 38 13 20 8 19 38 11 3 26 Critical Kills 2 | . . . . . . . . . . . . . . . . . . . . . . . . . . . . . . . . 2 Critical Parts Destroyed . | . . . . . . . . . . . . . . . . . . . . . . . . . . . . . . . . . Critical Strikes 17 | . . . . . . . . 3 2 1 . 5 1 . . . . . . . . . 1 2 . . . . . . . 2 Burn 2 | . . . . . . . . . 2 . . . . . . . . . . . . . . . . . . . . . . . Meltdown 2 | . . . . . . . . . . . . . . . . . . . . . . . . . . . . . . . . 2 Blast 9 | . . . . . . . . 3 . 1 . 3 1 . . . . . . . . . 1 . . . . . . . . . Corrupt 1 | . . . . . . . . . . . . 1 . . . . . . . . . . . . . . . . . . . . Sever 3 | . . . . . . . . . . . . 1 . . . . . . . . . . . 2 . . . . . . . . Melee Attacks 57 | . . . . . . . . . . . 15 40 . . . . . . . . . . . . . . . . . . . 2 Impact 30 | . . . . . . . . . . . 15 15 . . . . . . . . . . . . . . . . . . . . Slashing 20 | . . . . . . . . . . . . 20 . . . . . . . . . . . . . . . . . . . . Piercing 7 | . . . . . . . . . . . . 5 . . . . . . . . . . . . . . . . . . . 2 Sneak Attacks 2 | . . . . . . . . . . . . . . . . . . . . . . . . . . . . . . . . 2 Combat Hostiles . | . . . . . . . . . . . . . . . . . . . . . . . . . . . . . . . . . Follow-up Attacks . | . . . . . . . . . . . . . . . . . . . . . . . . . . . . . . . . . Damage Inflicted 49484 | 205 697 665 . . 2429 748 622 3106 1172 595 . 7343 1082 577 1343 1097 . 2098 607 1308 847 203 4226 4235 1178 2161 668 1905 3653 968 188 3558 Guns 3570 | 205 697 102 . . 1419 604 266 . 277 . . . . . . . . . . . . . . . . . . . . . . . Cannons 35079 | . . . . . 232 . 356 1657 541 595 . 2600 891 577 1343 1097 . 2098 520 1308 847 203 3664 2496 1178 2161 666 1905 3653 968 188 3335 Explosions 9801 | . . 563 . . 778 144 . 1449 354 . . 4135 191 . . . . . 87 . . . 562 1538 . . . . . . . . Melee 590 | . . . . . . . . . . . . 414 . . . . . . . . . . . . . . . . . . . 176 Ramming 66 | . . . . . . . . . . . . . . . . . . . . . . . . 17 . . 2 . . . . 47 Kinetic 8192 | 205 697 102 . . 745 301 515 855 179 195 . 1752 891 . . . . 555 . . . . 1200 . . . . . . . . . Thermal 30523 | . . . . . 303 144 107 802 639 400 . 842 . 577 1343 1097 . 1543 607 1308 847 203 2464 3243 1178 2161 666 1905 3653 968 188 3335 Explosive 8050 | . . 563 . . 475 . . 1449 354 . . 3665 191 . . . . . . . . . 562 791 . . . . . . . . Electromagnetic 1685 | . . . . . 906 303 . . . . . 476 . . . . . . . . . . . . . . . . . . . . Impact . | . . . . . . . . . . . . . . . . . . . . . . . . . . . . . . . . . Slashing 480 | . . . . . . . . . . . . 296 . . . . . . . . . . . 184 . . . . . . . . Piercing 488 | . . . . . . . . . . . . 312 . . . . . . . . . . . . . . . . . . . 176 Highest Corruption 19 | . . . . . . 3 3 3 3 3 3 . . 1 1 1 1 1 . . . . . 1 1 1 1 . 4 . . 19 Average Corruption 2 | . . . . . . 2 3 3 3 3 3 . . 1 1 1 1 1 . . . . . 1 1 1 1 . 2 . . 4 Corruption Purged 6 | . . . . . . . . . . . . . . . . . . . . . . . . . . . . . 6 . . . Corruption Blocked 78 | . . . . . . . . . . . . . . . . . . . . . . . . . . . . . . 78 . . Effects 187 | . . . . . . 7 14 21 32 28 14 . . . 6 3 2 10 . . . . . . 8 6 . . 14 . . 22 Message Errors 45 | . . . . . . 2 3 8 10 4 2 . . . 2 2 1 3 . . . . . . . 1 . . 5 . . 2 Matter Fused 52 | . . . . . . 3 4 3 10 11 8 . . . 1 . . . . . . . . . 3 . . . 4 . . 5 Heat Flow Errors 23 | . . . . . . 2 2 5 3 3 . . . . 1 . 1 1 . . . . . . . . . . . . . 5 Energy Discharges 20 | . . . . . . . 1 2 2 6 2 . . . . . . 3 . . . . . . 2 1 . . . . . 1 Parts Rejected 2 | . . . . . . . . . . . . . . . . . . . . . . . . . . . . . . . . 2 Parts Fused 1 | . . . . . . . . . . . . . . . . . . 1 . . . . . . . . . . . . . . Data Loss (minor) 20 | . . . . . . . 3 . 4 2 1 . . . 1 . . 1 . . . . . . 3 . . . 3 . . 2 Data Loss (major) 10 | . . . . . . . 1 1 2 2 1 . . . 1 . . 1 . . . . . . . 1 . . . . . . Misfires 3 | . . . . . . . . . . . . . . . . . . . . . . . . . . 2 . . 1 . . . Alerts 4 | . . . . . . . . 1 1 . . . . . . 1 . . . . . . . . . . . . . . . 1 Misdirections 4 | . . . . . . . . . . . . . . . . . . . . . . . . . . . . . . . . 4 Weapon Failures 3 | . . . . . . . . 1 . . . . . . . . . . . . . . . . . 1 . . 1 . . . Overload Shots . | . . . . . . . . . . . . . . . . . . . . . . . . . . . . . . . . . Overflow Damage 2329 | . . 29 . . 12 79 . 71 17 . . 659 145 32 47 66 . 49 . 39 87 46 191 191 30 62 . 67 134 91 . 185 Projectiles 1591 | . . . . . 8 . . 27 9 . . 222 145 32 47 66 . 49 . 39 87 46 180 111 30 62 . 67 134 91 . 139 Explosions 588 | . . 29 . . 4 79 . 44 8 . . 333 . . . . . . . . . . 11 80 . . . . . . . . Melee 150 | . . . . . . . . . . . . 104 . . . . . . . . . . . . . . . . . . . 46 Knockbacks 32 | . . . . . 1 . . 4 2 1 . 6 3 . . . . 2 . . . . 13 . . . . . . . . . Impact . | . . . . . . . . . . . . . . . . . . . . . . . . . . . . . . . . . Kinetic 25 | . . . . . 1 . . 3 2 1 . 5 2 . . . . 2 . . . . 9 . . . . . . . . . Secondary 7 | . . . . . . . . 1 . . . 1 1 . . . . . . . . . 4 . . . . . . . . . Self-Inflicted Damage 1259 | . . 89 . . 314 142 . 378 12 . . 91 15 . . . . . 88 . . . 47 71 . . . . . . . 12 Shots 38 | . . 4 . . 8 3 . 12 1 . . 5 1 . . . . . 1 . . . 2 1 . . . . . . . . Rammed 6 | . . . . . . . . . . . . . . . . . . . . . . . . 2 . . . . . . . 4 Targets Rammed 8 | . . . . . . . . . . . . . . . . . . . . . . . . 2 . . 1 . . . . 5 Kicked 2 | . . . . . . . . . . . . . . . . . . . . . . . . . . . 1 . . . . 1 Crushed . | . . . . . . . . . . . . . . . . . . . . . . . . . . . . . . . . . Highest Temperature 474 | . 2 . . . 313 240 153 210 474 217 37 . . . 269 16 241 172 . 12 8 . . . . . 20 . . . . 375 Average Temperature 75 | . 1 . . . 55 42 82 50 149 95 37 . . . 145 5 131 33 . 9 6 . . . . . 9 . . . . 95 Received Heat Transfer 3535 | . 150 . . . 531 120 . 168 121 27 . 261 9 18 63 117 . 246 27 45 9 . 163 369 111 142 310 72 168 . . 288 Effects 3 | . . . . . . . . . 1 . . . . . . . . . . . . . . . . . . . . . . 2 Shutdowns 2 | . . . . . . . . . 1 . . . . . . . . . . . . . . . . . . . . . . 1 Matter Decay 1 | . . . . . . . . . . . . . . . . . . . . . . . . . . . . . . . . 1 Siege Activations 3 | . . . . . . . . 2 1 . . . . . . . . . . . . . . . . . . . . . . . Total Turns 66 | . . . . . . . . 40 26 . . . . . . . . . . . . . . . . . . . . . . . Longest Duration 26 | . . . . . . . . 25 26 . . . . . . . . . . . . . . . . . . . . . . . Robots Corrupted 4 | . . . . . 1 . . . . . . 3 . . . . . . . . . . . . . . . . . . . . Combat Hostiles 4 | . . . . . 1 . . . . . . 3 . . . . . . . . . . . . . . . . . . . . Parts Fried 3 | . . . . . 2 1 . . . . . . . . . . . . . . . . . . . . . . . . . . Impact Corruptions 2 | . . . . . . . . . . . . 1 1 . . . . . . . . . . . . . . . . . . . Robots Melted 3 | . . . . . . . . . 1 . . . . . . . . . . . . . . . . . . . . . . 2 Combat Hostiles 3 | . . . . . . . . . 1 . . . . . . . . . . . . . . . . . . . . . . 2 Parts Melted 30 | . . . . . . . . 2 1 4 . . . . 3 . . . . . . . 1 . . 1 . 1 6 1 . 10 Heat Transferred 17943 | . . . . . 300 150 111 776 962 481 . 200 . 300 750 600 . 825 325 700 475 125 1350 1650 675 1175 350 1050 1900 525 112 2076 Parts Sabotaged . | . . . . . . . . . . . . . . . . . . . . . . . . . . . . . . . . . Parts Stolen . | . . . . . . . . . . . . . . . . . . . . . . . . . . . . . . . . . Parts Stripped . | . . . . . . . . . . . . . . . . . . . . . . . . . . . . . . . . . Power Chain Reactions 8 | . . . . . 5 3 . . . . . . . . . . . . . . . . . . . . . . . . . . Missiles Intercepted . | . . . . . . . . . . . . . . . . . . . . . . . . . . . . . . . . . Alert | -11 -10 -10 -10 -9 -8 -7 -7 -7 -7 -7 -7 -7 -6 -6 -6 -6 -6 -5 -5 -5 -5 -5 -4 -4 -4 -4 -4 -3 -3 -2 -1 -1 ------- Run | Jun Mat Min Exi Min Mat Fac Was Fac Low Low Zio Dee Pro Fac Low Low Dat Pro Fac Upp Upp Zhi Pro Fac Upp Upp War Pro Res Res Acc Com Peak Influence 1388 | 10 220 303 . . 363 322 112 1388 . . . . . 125 . . . . 251 . . . . 683 . . . . 331 223 86 301 Initial 186 | . 6 46 . . . 86 50 . . . . . . 75 . . . . 150 . . . . 44 . . . . 6 186 44 54 Average 188 | 2 96 192 . . 158 182 35 797 . . . . . 50 . . . . 161 . . . . 195 . . . . 137 78 54 168 Maximum Alert Level 4 | . 1 1 . . 1 1 . 4 . . . . . . . . . . 1 . . . . 2 . . . . 1 1 . 1 Low Security (%) 66 | 100 87 46 . 100 59 51 100 14 . . . . . 100 . . . . 76 . . . . 53 . . . . 66 91 100 53 Level 1 24 | . 12 53 . . 40 48 . 5 . . . . . . . . . . 23 . . . . 34 . . . . 33 8 . 46 Level 2 1 | . . . . . . . . 1 . . . . . . . . . . . . . . . 11 . . . . . . . . Level 3 4 | . . . . . . . . 52 . . . . . . . . . . . . . . . . . . . . . . . . Level 4 2 | . . . . . . . . 26 . . . . . . . . . . . . . . . . . . . . . . . . Level 5 . | . . . . . . . . . . . . . . . . . . . . . . . . . . . . . . . . . High Security . | . . . . . . . . . . . . . . . . . . . . . . . . . . . . . . . . . Max Security . | . . . . . . . . . . . . . . . . . . . . . . . . . . . . . . . . . Squads Dispatched 46 | . 2 . . . 5 2 . 11 . . . . . 2 . . . . . . . . . 7 . . . . 7 . 3 7 Investigation 7 | . 1 . . . 1 . . 1 . . . . . 1 . . . . . . . . . 1 . . . . 1 . . 1 Extermination 12 | . . . . . . . . 2 . . . . . 1 . . . . . . . . . 2 . . . . 3 . 1 3 Reinforcement 18 | . 1 . . . 4 . . 3 . . . . . . . . . . . . . . . 3 . . . . 3 . 1 3 Assault 5 | . . . . . . 1 . 3 . . . . . . . . . . . . . . . 1 . . . . . . . . Garrison 4 | . . . . . . 1 . 2 . . . . . . . . . . . . . . . . . . . . . . 1 . Intercept . | . . . . . . . . . . . . . . . . . . . . . . . . . . . . . . . . . Searches Triggered . | . . . . . . . . . . . . . . . . . . . . . . . . . . . . . . . . . Data Miner Redirects 1 | . . . . . . . . . . . . . . . . . . . . . . . . 1 . . . . . . . . Construction Impeded 1 | . . . . . 1 . . . . . . . . . . . . . . . . . . . . . . . . . . . Haulers Reinforced 1 | . . . . . . . . . . . . . . . . . . . . . . . . 1 . . . . . . . . Active Scanning Responses . | . . . . . . . . . . . . . . . . . . . . . . . . . . . . . . . . . Cargo Convoy Interrupts 1 | . . . . . . . . 1 . . . . . . . . . . . . . . . . . . . . . . . . Stealth | -11 -10 -10 -10 -9 -8 -7 -7 -7 -7 -7 -7 -7 -6 -6 -6 -6 -6 -5 -5 -5 -5 -5 -4 -4 -4 -4 -4 -3 -3 -2 -1 -1 --------- Run | Jun Mat Min Exi Min Mat Fac Was Fac Low Low Zio Dee Pro Fac Low Low Dat Pro Fac Upp Upp Zhi Pro Fac Upp Upp War Pro Res Res Acc Com Distress Signals 16 | . 1 . . . 1 . . 2 . . . . . . . . . . . . . . . . . . . . 1 6 . 5 Communications Jammed 28 | . . . . . . . . . . . . . . . . . . . . . . . . 28 . . . . . . . . Distress Signals 25 | . . . . . . . . . . . . . . . . . . . . . . . . 25 . . . . . . . . Times Spotted 431 | . 16 18 . . 25 5 5 38 12 6 . 47 11 9 9 10 . 14 3 6 10 . 35 35 8 11 15 12 23 14 2 32 Peak Tracking Total 38 | . 2 3 . . 5 3 2 9 5 3 . 38 4 4 5 4 . 3 1 3 4 . 14 14 5 4 10 5 4 3 1 13 Tactical Retreats 37 | . 1 1 . . . . . 3 1 . . 17 . . . . . . . . . . 3 1 . . . . 2 3 . 5 Traps | -11 -10 -10 -10 -9 -8 -7 -7 -7 -7 -7 -7 -7 -6 -6 -6 -6 -6 -5 -5 -5 -5 -5 -4 -4 -4 -4 -4 -3 -3 -2 -1 -1 ------- Run | Jun Mat Min Exi Min Mat Fac Was Fac Low Low Zio Dee Pro Fac Low Low Dat Pro Fac Upp Upp Zhi Pro Fac Upp Upp War Pro Res Res Acc Com Traps Triggered 13 | . 1 . . . . 5 . 1 . . . . . . . . . . 1 . . . . . . . . . 5 . . . Indirectly . | . . . . . . . . . . . . . . . . . . . . . . . . . . . . . . . . . Trap Hack Attempts . | . . . . . . . . . . . . . . . . . . . . . . . . . . . . . . . . . Triggered . | . . . . . . . . . . . . . . . . . . . . . . . . . . . . . . . . . Disarmed . | . . . . . . . . . . . . . . . . . . . . . . . . . . . . . . . . . Reprogrammed . | . . . . . . . . . . . . . . . . . . . . . . . . . . . . . . . . . Reused . | . . . . . . . . . . . . . . . . . . . . . . . . . . . . . . . . . Traps Extracted . | . . . . . . . . . . . . . . . . . . . . . . . . . . . . . . . . . Installed . | . . . . . . . . . . . . . . . . . . . . . . . . . . . . . . . . . Triggered 27 | . . . . . . . . 1 . . . . . . . 1 . . . . 3 . . . 1 1 20 . . . . . Exploded 1 | . . . 1 . . . . . . . . . . . . . . . . . . . . . . . . . . . . . Machines | -11 -10 -10 -10 -9 -8 -7 -7 -7 -7 -7 -7 -7 -6 -6 -6 -6 -6 -5 -5 -5 -5 -5 -4 -4 -4 -4 -4 -3 -3 -2 -1 -1 ---------- Run | Jun Mat Min Exi Min Mat Fac Was Fac Low Low Zio Dee Pro Fac Low Low Dat Pro Fac Upp Upp Zhi Pro Fac Upp Upp War Pro Res Res Acc Com Machines Disabled 41 | . . 1 . . 2 2 . 9 2 . . 4 . 4 . . . . 1 . . 1 . 11 . . . . 2 . . 2 Max in Single Turn 6 | . . 1 . . 1 1 . 4 1 . . 1 . 2 . . . . 1 . . 1 . 6 . . . . 1 . . 2 Garrison Access 7 | . . . . . . 1 . 2 . . . . . 1 . . . . 1 . . . . . . . . . . 2 . . Phase Generator 1 | . . . . . . . . . . . . . . . . . . . . . . . . . . . . . . . . 1 Machines Repaired . | . . . . . . . . . . . . . . . . . . . . . . . . . . . . . . . . . Machines Sabotaged . | . . . . . . . . . . . . . . . . . . . . . . . . . . . . . . . . . Overloaded Fab Kills . | . . . . . . . . . . . . . . . . . . . . . . . . . . . . . . . . . Hacking | -11 -10 -10 -10 -9 -8 -7 -7 -7 -7 -7 -7 -7 -6 -6 -6 -6 -6 -5 -5 -5 -5 -5 -4 -4 -4 -4 -4 -3 -3 -2 -1 -1 --------- Run | Jun Mat Min Exi Min Mat Fac Was Fac Low Low Zio Dee Pro Fac Low Low Dat Pro Fac Upp Upp Zhi Pro Fac Upp Upp War Pro Res Res Acc Com Machines Accessed 41 | . 2 1 2 . 3 1 . 3 . . . . . 5 1 . 3 . 4 . . 4 . 3 1 1 . . 4 . . 3 Terminals 22 | . 2 1 . . 2 . . 1 . . . . . 4 . . . . 2 . . . . 2 . 1 . . 4 . . 3 Fabricators 2 | . . . . . . . . 1 . . . . . . . . . . 1 . . . . . . . . . . . . . Repair Stations . | . . . . . . . . . . . . . . . . . . . . . . . . . . . . . . . . . Recycling Units . | . . . . . . . . . . . . . . . . . . . . . . . . . . . . . . . . . Scanalyzers . | . . . . . . . . . . . . . . . . . . . . . . . . . . . . . . . . . Garrison Access 6 | . . . . . 1 1 . 1 . . . . . 1 . . . . 1 . . . . 1 . . . . . . . . Total Hacks 98 | . 3 2 2 . 4 2 . 8 . . . . . 10 1 . 23 . 5 . . 17 . 6 1 1 . . 6 . . 7 Successful 63 | . 1 1 2 . 1 . . 2 . . . . . 4 1 . 23 . 2 . . 17 . 3 1 1 . . . . . 4 Failed 35 | . 2 1 . . 3 2 . 6 . . . . . 6 . . . . 3 . . . . 3 . . . . 6 . . 3 Catastrophic 12 | . . . . . 2 . . 2 . . . . . 2 . . . . 1 . . . . 1 . . . . 3 . . 1 Database Lockouts . | . . . . . . . . . . . . . . . . . . . . . . . . . . . . . . . . . Manual 15 | . . 2 1 . . . . . . . 1 . . 4 . . . . . . . . . . . . 1 . 6 . . . Terminals 38 | . 3 2 . . 2 . . 2 . . . . . 8 . . . . 3 . . . . 4 . 1 . . 6 . . 7 Fabricators 5 | . . . . . . . . 4 . . . . . . . . . . 1 . . . . . . . . . . . . . Repair Stations . | . . . . . . . . . . . . . . . . . . . . . . . . . . . . . . . . . Recycling Units . | . . . . . . . . . . . . . . . . . . . . . . . . . . . . . . . . . Scanalyzers . | . . . . . . . . . . . . . . . . . . . . . . . . . . . . . . . . . Garrison Access 11 | . . . . . 2 2 . 2 . . . . . 2 . . . . 1 . . . . 2 . . . . . . . . Terminal Hacks 58 | . 1 1 2 . 1 . . 1 . . . . . 2 1 . 23 . . . . 17 . 3 1 1 . . . . . 4 Record 13 | . . . 1 . . . . . . . . . . . . . 6 . . . . 5 . . . 1 . . . . . . Part Schematic 14 | . . . . . . . . . . . . . . . . . 10 . . . . 4 . . . . . . . . . . Robot Schematic 4 | . . . . . . . . . . . . . . . . . 4 . . . . . . . . . . . . . . . Robot Analysis 5 | . . 1 . . . . . . . . . . . . . . . . . . . 4 . . . . . . . . . . Prototype ID Bank 8 | . 1 . . . . . . . . . . . . . . . 3 . . . . 4 . . . . . . . . . . Open Door 2 | . . . . . . . . . . . . . . . 1 . . . . . . . . . 1 . . . . . . . Branch Access Points 3 | . . . . . . . . 1 . . . . . 1 . . . . . . . . . 1 . . . . . . . . Emergency Access Points 1 | . . . . . . . . . . . . . . . . . . . . . . . . . . . . . . . . 1 Terminal Index 2 | . . . . . . . . . . . . . . . . . . . . . . . . 1 . . . . . . . 1 Fabricator Index 1 | . . . . . . . . . . . . . . . . . . . . . . . . 1 . . . . . . . . Alert Level 1 | . . . . . . . . . . . . . . 1 . . . . . . . . . . . . . . . . . . Hauler Manifests 1 | . . . . . 1 . . . . . . . . . . . . . . . . . . . . . . . . . . . Registered Prototypes 1 | . . . . . . . . . . . . . . . . . . . . . . . . . . . . . . . . 1 EX-Prototype ID Bank 1 | . . . 1 . . . . . . . . . . . . . . . . . . . . . . . . . . . . . Disengage Seal 1 | . . . . . . . . . . . . . . . . . . . . . . . . . . . . . . . . 1 Fabricator Hacks 2 | . . . . . . . . 1 . . . . . . . . . . 1 . . . . . . . . . . . . . Network Status 1 | . . . . . . . . 1 . . . . . . . . . . . . . . . . . . . . . . . . Build 1 | . . . . . . . . . . . . . . . . . . . 1 . . . . . . . . . . . . . Repair Station Hacks . | . . . . . . . . . . . . . . . . . . . . . . . . . . . . . . . . . Recycling Unit Hacks . | . . . . . . . . . . . . . . . . . . . . . . . . . . . . . . . . . Scanalyzer . | . . . . . . . . . . . . . . . . . . . . . . . . . . . . . . . . . Garrison Access Hacks 2 | . . . . . . . . . . . . . . 1 . . . . 1 . . . . . . . . . . . . . Seal Access 2 | . . . . . . . . . . . . . . 1 . . . . 1 . . . . . . . . . . . . . Unauthorized Hacks 1 | . . . . . . . . . . . . . . 1 . . . . . . . . . . . . . . . . . . Terminals 1 | . . . . . . . . . . . . . . 1 . . . . . . . . . . . . . . . . . . Botnet 1 | . . . . . . . . . . . . . . 1 . . . . . . . . . . . . . . . . . . Fabricators . | . . . . . . . . . . . . . . . . . . . . . . . . . . . . . . . . . Repair Stations . | . . . . . . . . . . . . . . . . . . . . . . . . . . . . . . . . . Recycling Units . | . . . . . . . . . . . . . . . . . . . . . . . . . . . . . . . . . Scanalyzers . | . . . . . . . . . . . . . . . . . . . . . . . . . . . . . . . . . Garrison Access . | . . . . . . . . . . . . . . . . . . . . . . . . . . . . . . . . . Data Cores Recovered 1 | . . . . . . . . . . . . . . 1 . . . . . . . . . . . . . . . . . . Used . | . . . . . . . . . . . . . . . . . . . . . . . . . . . . . . . . . Hacking Detections 25 | . 2 1 . . 3 1 . 3 . . . . . 3 . . . . 2 . . . . 2 . 1 . . 4 . . 3 Full Trace Events 5 | . . . . . 1 . . 1 . . . . . 1 . . . . . . . . . 1 . . . . . . . 1 Feedback Events 2 | . . . . . . . . . . . . . . 1 . . . . . . . . . . . . . . . . . 1 Corruption 1 | . . . . . . . . . . . . . . 1 . . . . . . . . . . . . . . . . . . Hackware Fried 1 | . . . . . . . . . . . . . . . . . . . . . . . . . . . . . . . . 1 Feedback Blocked . | . . . . . . . . . . . . . . . . . . . . . . . . . . . . . . . . . Robot Schematics Acquired 7 | . . . . . . . . . . . 3 . . . . . 4 . . . . . . . . . . . . . . . Robots Built . | . . . . . . . . . . . . . . . . . . . . . . . . . . . . . . . . . Authchips . | . . . . . . . . . . . . . . . . . . . . . . . . . . . . . . . . . Time . | . . . . . . . . . . . . . . . . . . . . . . . . . . . . . . . . . Total Robot Build Rating . | . . . . . . . . . . . . . . . . . . . . . . . . . . . . . . . . . Part Schematics Acquired 29 | . . . . . . . . . . . 15 . . . . . 10 . . . . 4 . . . . . . . . . . Parts Built 2 | . . . . . . . . . . . . . . . . . . . 2 . . . . . . . . . . . . . Authchips . | . . . . . . . . . . . . . . . . . . . . . . . . . . . . . . . . . Time 117 | . . . . . . . . . . . . . . . . . . . 117 . . . . . . . . . . . . . Total Part Build Rating 14 | . . . . . . . . . . . . . . . . . . . 14 . . . . . . . . . . . . . Parts Repaired . | . . . . . . . . . . . . . . . . . . . . . . . . . . . . . . . . . Time . | . . . . . . . . . . . . . . . . . . . . . . . . . . . . . . . . . Parts Recycled . | . . . . . . . . . . . . . . . . . . . . . . . . . . . . . . . . . Recycled Matter . | . . . . . . . . . . . . . . . . . . . . . . . . . . . . . . . . . Retrieved Matter . | . . . . . . . . . . . . . . . . . . . . . . . . . . . . . . . . . Retrieved Components . | . . . . . . . . . . . . . . . . . . . . . . . . . . . . . . . . . Parts Scanalyzed . | . . . . . . . . . . . . . . . . . . . . . . . . . . . . . . . . . Part Schematics Acquired . | . . . . . . . . . . . . . . . . . . . . . . . . . . . . . . . . . Parts Damaged . | . . . . . . . . . . . . . . . . . . . . . . . . . . . . . . . . . Bothacking | -11 -10 -10 -10 -9 -8 -7 -7 -7 -7 -7 -7 -7 -6 -6 -6 -6 -6 -5 -5 -5 -5 -5 -4 -4 -4 -4 -4 -3 -3 -2 -1 -1 ------------ Run | Jun Mat Min Exi Min Mat Fac Was Fac Low Low Zio Dee Pro Fac Low Low Dat Pro Fac Upp Upp Zhi Pro Fac Upp Upp War Pro Res Res Acc Com Used RIF Installer . | . . . . . . . . . . . . . . . . . . . . . . . . . . . . . . . . . Robots Hacked . | . . . . . . . . . . . . . . . . . . . . . . . . . . . . . . . . . Non-combat . | . . . . . . . . . . . . . . . . . . . . . . . . . . . . . . . . . Combat . | . . . . . . . . . . . . . . . . . . . . . . . . . . . . . . . . . Robot Hacks Applied . | . . . . . . . . . . . . . . . . . . . . . . . . . . . . . . . . . Relay Couplers Released 11 | . . . . . . 2 . 5 . . . . . . . . . . . . . . . . . . . . . 4 . . Machine Destruction 8 | . . . . . . 2 . 5 . . . . . . . . . . . . . . . . . . . . . 1 . . Programmers 3 | . . . . . . . . . . . . . . . . . . . . . . . . . . . . . . 3 . . Fabnet Peak Effective % . | . . . . . . . . . . . . . . . . . . . . . . . . . . . . . . . . . Robots Rewired 5 | . . . . . . . . . 4 . . . . . 1 . . . . . . . . . . . . . . . . . Allies Hacked . | . . . . . . . . . . . . . . . . . . . . . . . . . . . . . . . . . Hacks Repelled . | . . . . . . . . . . . . . . . . . . . . . . . . . . . . . . . . . Allies | -11 -10 -10 -10 -9 -8 -7 -7 -7 -7 -7 -7 -7 -6 -6 -6 -6 -6 -5 -5 -5 -5 -5 -4 -4 -4 -4 -4 -3 -3 -2 -1 -1 -------- Run | Jun Mat Min Exi Min Mat Fac Was Fac Low Low Zio Dee Pro Fac Low Low Dat Pro Fac Upp Upp Zhi Pro Fac Upp Upp War Pro Res Res Acc Com Total Allies 28 | . . 1 . . . . 19 . 4 . 2 . . . 1 . . 1 . . . . . . . . . . . . . . Largest Group 19 | . . 1 . . . . 19 11 3 2 3 3 . . 1 . . 1 . . . . . . . . . . . . . . Highest-Rated Group 465 | . . 31 . . . . 465 330 93 47 223 223 . . 29 . . 96 . . . . . . . . . . . . . . Highest-Rated Ally 96 | . . 31 . . . . 35 35 31 31 96 96 . . 29 . . 96 . . . . . . . . . . . . . . Total Orders . | . . . . . . . . . . . . . . . . . . . . . . . . . . . . . . . . . Ally Attacks 502 | . . 29 . . . . 210 143 14 22 . 53 . . 10 . . 21 . . . . . . . . . . . . . . Total Damage 12218 | . . 315 . . . . 6089 2867 230 272 . 1448 . . 149 . . 848 . . . . . . . . . . . . . . Kills 58 | . . 5 . . . . 13 22 4 1 . 10 . . 2 . . 1 . . . . . . . . . . . . . . Allies Corrupted 1 | . . . . . . . . 1 . . . . . . . . . . . . . . . . . . . . . . . . Allies Melted 2 | . . . . . . . . . . . . . . . . . . . . . . . . . . . 1 . . 1 . . Intel | -11 -10 -10 -10 -9 -8 -7 -7 -7 -7 -7 -7 -7 -6 -6 -6 -6 -6 -5 -5 -5 -5 -5 -4 -4 -4 -4 -4 -3 -3 -2 -1 -1 ------- Run | Jun Mat Min Exi Min Mat Fac Was Fac Low Low Zio Dee Pro Fac Low Low Dat Pro Fac Upp Upp Zhi Pro Fac Upp Upp War Pro Res Res Acc Com Robot Analysis Total 5 | . . 1 . . . . . . . . . . . . . . . . . . . 4 . . . . . . . . . . Derelict Logs Recovered 14 | . . 2 . . . . . . 1 2 . . 1 . 2 2 . 1 . . . . . . 1 2 . . . . . . Drone Launches . | . . . . . . . . . . . . . . . . . . . . . . . . . . . . . . . . . Drone Recoveries . | . . . . . . . . . . . . . . . . . . . . . . . . . . . . . . . . . Decoded 0b10 Intel 62 | . . . . . . . . . . . . . . . . . . . . . . . . . . . . . 53 9 . . Traps 1 | . . . . . . . . . . . . . . . . . . . . . . . . . . . . . 1 . . . Emergency Access 5 | . . . . . . . . . . . . . . . . . . . . . . . . . . . . . 4 1 . . Items 43 | . . . . . . . . . . . . . . . . . . . . . . . . . . . . . 36 7 . . Machines 6 | . . . . . . . . . . . . . . . . . . . . . . . . . . . . . 5 1 . . Patrols 3 | . . . . . . . . . . . . . . . . . . . . . . . . . . . . . 3 . . . Guards 4 | . . . . . . . . . . . . . . . . . . . . . . . . . . . . . 4 . . . Exploration | -11 -10 -10 -10 -9 -8 -7 -7 -7 -7 -7 -7 -7 -6 -6 -6 -6 -6 -5 -5 -5 -5 -5 -4 -4 -4 -4 -4 -3 -3 -2 -1 -1 ------------- Run | Jun Mat Min Exi Min Mat Fac Was Fac Low Low Zio Dee Pro Fac Low Low Dat Pro Fac Upp Upp Zhi Pro Fac Upp Upp War Pro Res Res Acc Com Turns Passed 39694 | 114 618 1176 408 56 1464 575 947 1267 2117 1778 3400 6041 594 1038 980 603 123 1644 475 1139 1034 388 867 1379 1320 824 1233 1027 1985 1755 295 1030 Spaces Moved 19791 | 47 284 665 222 36 612 354 505 677 977 711 1277 3021 446 633 665 392 92 640 343 800 459 147 364 649 363 546 779 316 858 981 233 697 Core 99 | 6 . . . . . . . . . . . . . . . . . . . . . . . 13 5 . . . . . . 75 Treads 5220 | 41 284 665 222 36 . . . . 551 711 1277 1433 . . . . . . . . . . . . . . . . . . . . Legs 11871 | . . . . . . . . . . . . 1588 446 633 665 392 92 640 343 800 459 147 364 636 358 546 779 316 858 981 233 595 Wheels 2601 | . . . . . 612 354 505 677 426 . . . . . . . . . . . . . . . . . . . . . . 27 Hover . | . . . . . . . . . . . . . . . . . . . . . . . . . . . . . . . . . Flight . | . . . . . . . . . . . . . . . . . . . . . . . . . . . . . . . . . Fastest Speed 50 | 50 160 160 160 160 90 117 117 155 155 246 246 132 132 132 132 132 132 132 132 132 132 132 135 50 50 135 120 120 125 122 120 50 Average Speed 161 | 145 160 160 160 160 114 138 146 155 206 246 260 177 132 132 132 132 132 132 132 132 132 132 163 161 133 135 124 169 172 159 120 111 Slowest Speed 330 | 160 160 240 160 160 130 155 155 155 246 246 330 330 132 132 132 132 132 132 132 132 185 132 185 190 135 135 176 179 179 185 120 130 Overloaded Moves . | . . . . . . . . . . . . . . . . . . . . . . . . . . . . . . . . . Propulsion Burnouts . | . . . . . . . . . . . . . . . . . . . . . . . . . . . . . . . . . Robots Hopped . | . . . . . . . . . . . . . . . . . . . . . . . . . . . . . . . . . Cave-ins Triggered . | . . . . . . . . . . . . . . . . . . . . . . . . . . . . . . . . . Teleports 1 | . . . . . . . . . . . . . . . . . . . . . . . . 1 . . . . . . . . Exploration Rate (%) 52 | 5 53 99 62 10 38 15 96 23 99 82 87 94 57 21 70 61 69 69 8 80 55 60 59 15 56 54 71 55 24 46 11 32 Regions Visited 32 Branch Regions 21 Pre-discovered Areas 10 | . . 2 1 . . . . . . 1 . . . . 1 . 1 . . . . 3 . . 1 . . . . . . . Known Exits Taken 9 | . . . . . . . . 1 . . . . . 1 . . . 1 1 . . . 1 1 . . . 1 . 1 1 . Unknown Exits Taken 21 | 1 1 1 1 1 1 . . . 1 1 1 1 1 . 1 1 1 . . 1 1 1 . . 1 1 1 . 1 . . . Scrap Searched 35 | . . 1 . 1 . . . . 1 3 4 . 1 . 3 2 . 2 . 3 1 . 3 . 3 3 . 4 . . . . Spaces Dug 143 | . . 21 . . . . . 8 . 3 3 18 . 8 . 1 . 4 1 4 21 . . 6 . . . 15 28 . . 2 Terrain Destroyed 1127 | . . 74 . . 41 10 4 131 43 5 3 110 37 16 9 24 . 30 26 22 53 . 112 160 9 10 5 40 68 6 . 79 Melee 17 | . . . . . . . . . . . 3 14 . . . . . . . . . . . . . . . . . . . . Projectile 432 | . . . . . . . 4 25 8 5 . 19 11 16 9 24 . 30 2 22 53 . 28 29 9 10 5 40 68 6 . 9 AOE 678 | . . 74 . . 41 10 . 106 35 . . 77 26 . . . . . 24 . . . 84 131 . . . . . . . 70 Terrain Rammed . | . . . . . . . . . . . . . . . . . . . . . . . . . . . . . . . . . Walls Destroyed . | . . . . . . . . . . . . . . . . . . . . . . . . . . . . . . . . . Machines Disabled . | . . . . . . . . . . . . . . . . . . . . . . . . . . . . . . . . . Actions | -11 -10 -10 -10 -9 -8 -7 -7 -7 -7 -7 -7 -7 -6 -6 -6 -6 -6 -5 -5 -5 -5 -5 -4 -4 -4 -4 -4 -3 -3 -2 -1 -1 --------- Run | Jun Mat Min Exi Min Mat Fac Was Fac Low Low Zio Dee Pro Fac Low Low Dat Pro Fac Upp Upp Zhi Pro Fac Upp Upp War Pro Res Res Acc Com Total 26226 | 69 369 744 276 35 1255 397 692 826 1048 726 1337 3655 450 809 748 440 95 1395 353 844 831 336 551 897 1169 592 1031 741 1239 1165 241 870 Wait 4705 | . 35 41 51 . 528 3 141 76 14 . 9 202 . 150 12 29 . 721 . 19 342 171 124 167 776 10 221 387 283 101 . 92 Move 19761 | 46 283 664 221 35 611 354 504 676 976 710 1276 3020 445 632 664 391 91 639 342 799 458 146 363 649 362 545 778 315 857 980 232 697 Hop . | . . . . . . . . . . . . . . . . . . . . . . . . . . . . . . . . . Pick Up 274 | 5 8 2 1 . 11 3 8 10 3 1 10 130 . 1 22 . . . 2 . 1 2 1 4 8 9 2 . 8 18 1 3 Fast Attach 115 | 7 . . . . 11 7 8 4 . . 4 22 1 . . . . 1 1 2 1 3 6 7 1 . 7 1 4 10 2 5 Attach 71 | . . 2 . . 11 7 . 3 3 . 5 12 1 . . . 1 . . . . . 1 5 4 . . 2 1 . 1 12 Detach 101 | . . . . . 4 2 2 1 . . 2 22 1 1 2 . 3 8 . 3 . 5 3 5 2 . 9 5 7 6 1 7 Swap 67 | 1 3 10 . . 8 2 1 6 4 1 1 4 . . . . . 1 . 1 1 1 2 7 1 . 1 . 4 4 1 2 Drop 278 | . 1 4 3 . 3 1 16 11 . 2 14 139 1 3 22 . . 1 . . 2 2 1 3 2 6 5 . 1 31 . 4 Fire 745 | 10 39 21 . . 68 18 12 39 17 9 1 61 1 22 19 20 . 24 8 19 26 6 50 49 13 22 7 31 74 15 3 41 Melee 57 | . . . . . . . . . . . 15 40 . . . . . . . . . . . . . . . . . . . 2 Ram 5 | . . . . . . . . . . . . . . . . . . . . . . . . 1 . . . . . . . 4 Kick 2 | . . . . . . . . . . . . . . . . . . . . . . . . . . . 1 . . . . 1 Crush . | . . . . . . . . . . . . . . . . . . . . . . . . . . . . . . . . . Escape Stasis . | . . . . . . . . . . . . . . . . . . . . . . . . . . . . . . . . . Rewire 45 | . . . . . . . . . 31 3 . 3 . . 7 . . . . 1 . . . . . . . . . . . . Trap . | . . . . . . . . . . . . . . . . . . . . . . . . . . . . . . . . . Miscellaneous . | . . . . . . . . . . . . . . . . . . . . . . . . . . . . . . . . . Route ------- -11/Junkyard -10/Materials (discovered 3 exits: [*Mat] / *Min x2) -10/Mines (discovered 3 exits: [*Mat x2] / *Exi) -10/Exiles -9/Mines -8/Materials -7/Factory -7/Waste -7/Factory (discovered 5 exits: *Fac x2 / Sto / *Low x2) -7/Lower Caves -7/Lower Caves -7/Zion (discovered 2 exits: [*Dee] / [*Pro]) -7/Deep Caves -6/Proximity Caves -6/Factory (discovered 3 exits: Fac / *Low x2) -6/Lower Caves -6/Lower Caves (discovered 2 exits: *Fac / *Dat) -6/Data Miner -5/Proximity Caves -5/Factory (discovered 4 exits: Fac / *Upp / Ext x2) -5/Upper Caves -5/Upper Caves -5/Zhirov -4/Proximity Caves -4/Factory (discovered 3 exits: *Upp x2 / Arm) -4/Upper Caves -4/Upper Caves -4/Warlord -3/Proximity Caves -3/Research (discovered 2 exits: [*Res] / [*Qua]) -2/Research -1/Access -1/Command History --------- Turn | Location | Event 18 | -11/Junkyard | Discovered new exit (range 15) 115 | -11/Junkyard | Entered Materials 309 | -10/Materials | Build established: Mutant 339 | -10/Materials | Discovered new exit (range 7) 410 | -10/Materials | Discovered new exit (range 5) 686 | -10/Materials | Discovered new exit (range 15) 733 | -10/Materials | Entered Mines 764 | -10/Mines | Learned location of Zion (-7) 963 | -10/Mines | Received a Rocket Launcher from a helpful Derelict 1031 | -10/Mines | Escorted by a lone wolf Derelict 1051 | -10/Mines | Learned location of Storage (-7) 1366 | -10/Mines | Build established: Scavenger-Mutant 1396 | -10/Mines | Learned Materials terminal intel 1435 | -10/Mines | Discovered new exit (range 7) 1583 | -10/Mines | Discovered new exit (range 10) 1824 | -10/Mines | Deemed a non-threat by the Exiles lab entrance 1825 | -10/Mines | Discovered new exit (range 5) 1909 | -10/Mines | Entered Exiles 1953 | -10/Exiles | Met 8R-AWN 1973 | -10/Exiles | Met EX-HEX 2021 | -10/Exiles | Met EX-BIN 2039 | -10/Exiles | Aligned with FarCom system 2041 | -10/Exiles | Given EX-Vault access code 2079 | -10/Exiles | Opened EX-Vault 2103 | -10/Exiles | Found AWS/Autocannon 2134 | -10/Exiles | Warned to stay clear of 0b10 Research branches 2147 | -10/Exiles | Exiles lab attacked by MAIN.C 2246 | -10/Exiles | Discovered new exit (range 14) 2317 | -10/Exiles | Left Exiles lab with AWS/Autocannon 2317 | -10/Exiles | Entered Mines 2317 | -9/Mines | Discovered new exit (range 13) 2373 | -9/Mines | Entered Materials 2373 | -8/Materials | Evolved 4 slots: Propulsion x1, Utility x2, Weapon x1 2374 | -8/Materials | Loaded intel: 12 terminal locations 2623 | -8/Materials | Lost 9 parts (3n3u3w) 3082 | -8/Materials | Build established: Scavenger-Skirmisher 3100 | -8/Materials | Discovered new exit (range 3) 3837 | -8/Materials | Entered Factory 3837 | -7/Factory | Evolved 2 slots: Propulsion x1, Utility x1 3989 | -7/Factory | Lost 3 parts (1n2w) 4401 | -7/Factory | Discovered new exit (range 9) 4412 | -7/Factory | Sucked down chute 4412 | -7/Factory | Entered Waste 4423 | -7/Waste | Spotted C-40 Crusher 4425 | -7/Waste | Spotted C-40 Crusher 4445 | -7/Waste | Warlord forces began an assault 4463 | -7/Waste | Allies destroyed C-40 Crusher 4480 | -7/Waste | Allies destroyed C-40 Crusher 4551 | -7/Waste | Spotted C-40 Crusher 4559 | -7/Waste | Spotted C-40 Crusher 4564 | -7/Waste | Allies destroyed C-40 Crusher 4567 | -7/Waste | Allies destroyed C-40 Crusher 4587 | -7/Waste | Spotted C-40 Crusher 4595 | -7/Waste | Allies destroyed C-40 Crusher 4597 | -7/Waste | Spotted C-40 Crusher 4611 | -7/Waste | Allies destroyed C-40 Crusher 4614 | -7/Waste | Found Damper Plating 4926 | -7/Waste | Build established: Skirmisher 5272 | -7/Waste | Discovered new exit (range 16) 5359 | -7/Waste | Entered Factory 5359 | -7/Factory | Accompanied by 11 allies 5685 | -7/Factory | Build established: Gunner 5904 | -7/Factory | Found Prototype Launcher 5904 | -7/Factory | Identified Rocket Array 6036 | -7/Factory | Discovered new exit (range 6) 6104 | -7/Factory | Discovered new exit (range 6) 6126 | -7/Factory | Cargo convoy interrupted 6159 | -7/Factory | First assault squad dispatched 6252 | -7/Factory | Destroyed 9 combat bots 6344 | -7/Factory | Identified exit to Storage 6344 | -7/Factory | Identified exit to Lower Caves 6626 | -7/Factory | Entered Lower Caves 6702 | -7/Lower Caves | Learned 4 Factory zone layouts 7273 | -7/Lower Caves | Attacked by a delusional Derelict stockpiling Unaware 7732 | -7/Lower Caves | Encountered a Warlord checkpoint 8161 | -7/Lower Caves | Attracted the attention of an 0b10 outpost 8264 | -7/Lower Caves | Discovered new exit (range 12) 8743 | -7/Lower Caves | Entered another Lower Caves area 8743 | -7/Lower Caves | Accompanied by 2 allies 8751 | -7/Lower Caves | Learned Factory trap positions 8847 | -7/Lower Caves | Encountered a Warlord checkpoint 9801 | -7/Lower Caves | Discovered new exit (range 11) 10521 | -7/Lower Caves | Entered Zion 10521 | -7/Zion | Accompanied by 1 ally 10828 | -7/Zion | Build established: Mutant 10925 | -7/Zion | Given A8's code to call for help 10930 | -7/Zion | Discovered new exit (range 14) 11165 | -7/Zion | System corruption cleaned by Quarantine Array 11411 | -7/Zion | Found Prototype Special Weapon 11414 | -7/Zion | Found Prototype Special Weapon 11418 | -7/Zion | Found Prototype Special Weapon 11421 | -7/Zion | Found Prototype Special Weapon 11494 | -7/Zion | Given the Hacking Drone Bay 12029 | -7/Zion | Rebuked by Imprinter 12420 | -7/Zion | Received a visual enhancement algorithm 12797 | -7/Zion | Found Prototype Device 12988 | -7/Zion | Identified RU-N14's Throwing Claymores (x4) 13415 | -7/Zion | Build established: Gunner 13882 | -7/Zion | Enhanced Grunt warped into view, answering call for help 13884 | -7/Zion | Enhanced Grunt warped into view, answering call for help 13899 | -7/Zion | Discovered new exit (range 5) 13903 | -7/Zion | Saw the warning signs outside the Deep Caves entrance 13921 | -7/Zion | Entered Deep Caves 13921 | -7/Deep Caves | Accompanied by 3 allies 14661 | -7/Deep Caves | Attacked by Z-Imprinter 14668 | -7/Deep Caves | Destroyed Z-Imprinter 14676 | -7/Deep Caves | Z-Facility disabled 14736 | -7/Deep Caves | Identified Hacking Drone Bay 15744 | -7/Deep Caves | Discovered new exit (range 7) 16207 | -7/Deep Caves | Build established: Mutant 16295 | -7/Deep Caves | Found Prototype Protection 16295 | -7/Deep Caves | Identified Zio. Weapon Casing 16739 | -7/Deep Caves | Spotted as-05885 16750 | -7/Deep Caves | Destroyed as-05885 16792 | -7/Deep Caves | Exposed GOLEM chamber 16793 | -7/Deep Caves | Triggered Deep Caves wall 16810 | -7/Deep Caves | Spotted as-68706 16812 | -7/Deep Caves | Spotted AS-97567 16822 | -7/Deep Caves | Destroyed AS-97567 16825 | -7/Deep Caves | Destroyed AS-90449 16833 | -7/Deep Caves | Destroyed as-68706 16854 | -7/Deep Caves | Destroyed 38 combat bots 16862 | -7/Deep Caves | Lost 3 parts (1n1u1w) 16879 | -7/Deep Caves | Found Lightpack 2.0 17048 | -7/Deep Caves | Found GOLEM Unit 17054 | -7/Deep Caves | Found GOLEM Unit 17059 | -7/Deep Caves | Found GOLEM Unit 17064 | -7/Deep Caves | Found GOLEM Unit 17069 | -7/Deep Caves | Found GOLEM Unit 17074 | -7/Deep Caves | Found GOLEM Unit 17080 | -7/Deep Caves | Found GOLEM Unit 17085 | -7/Deep Caves | Found GOLEM Unit 17090 | -7/Deep Caves | Found GOLEM Unit 17095 | -7/Deep Caves | Found GOLEM Unit 17100 | -7/Deep Caves | Found GOLEM Unit 17106 | -7/Deep Caves | Found GOLEM Unit 17111 | -7/Deep Caves | Found GOLEM Unit 17117 | -7/Deep Caves | Found GOLEM Unit 17123 | -7/Deep Caves | Found GOLEM Unit 17158 | -7/Deep Caves | Found GOLEM Unit 17164 | -7/Deep Caves | Found GOLEM Unit 17235 | -7/Deep Caves | Found GOLEM Unit 17457 | -7/Deep Caves | Build established: Hauler-Golem 18318 | -7/Deep Caves | Found GOLEM Unit 19189 | -7/Deep Caves | Found GOLEM Unit 19457 | -7/Deep Caves | Found GOLEM Unit 19503 | -7/Deep Caves | Found GOLEM Unit 19615 | -7/Deep Caves | Found GOLEM Unit 19622 | -7/Deep Caves | Found GOLEM Unit 19674 | -7/Deep Caves | Found GOLEM Unit 19758 | -7/Deep Caves | Found GOLEM Unit 19789 | -7/Deep Caves | Found GOLEM Unit 19806 | -7/Deep Caves | Found GOLEM Unit 19824 | -7/Deep Caves | Found GOLEM Unit 19962 | -7/Deep Caves | Entered Proximity Caves 20285 | -6/Proximity Caves | Core integrity fell below 50% 20550 | -6/Proximity Caves | Discovered new exit (range 5) 20556 | -6/Proximity Caves | Entered Factory 20556 | -6/Factory | Evolved 2 slots: Power x1, Utility x1 20557 | -6/Factory | Identified exit to Factory 20558 | -6/Factory | Loaded intel: 115 trap records 20985 | -6/Factory | Identified exit to Lower Caves 21594 | -6/Factory | Entered Lower Caves 21865 | -6/Lower Caves | Attracted the attention of an 0b10 outpost 21974 | -6/Lower Caves | Learned Factory terminal intel 22561 | -6/Lower Caves | Discovered new exit (range 10) 22574 | -6/Lower Caves | Entered another Lower Caves area 22575 | -6/Lower Caves | Encountered a Warlord checkpoint 22611 | -6/Lower Caves | Learned location of 1 exit from Factory 22611 | -6/Lower Caves | Discovered exit to Factory (range 9) 22638 | -6/Lower Caves | Learned location of 2 exits from Factory 23156 | -6/Lower Caves | Discovered new exit (range 8) 23177 | -6/Lower Caves | Entered Data Miner 23179 | -6/Data Miner | Discovered new exit (range 6) 23204 | -6/Data Miner | Met Data Miner 23237 | -6/Data Miner | Learned location of Section 7 (-3) 23237 | -6/Data Miner | Acquired the access code to Warlord's prototype stash 23256 | -6/Data Miner | Received God Mode back door access code from Data Miner 23300 | -6/Data Miner | Entered Proximity Caves 23593 | -5/Proximity Caves | Escorted by Enhanced Grunt 23607 | -5/Proximity Caves | Learned Factory machine intel 23630 | -5/Proximity Caves | Spotted B-75 Beast 23664 | -5/Proximity Caves | Destroyed B-75 Beast 23676 | -5/Proximity Caves | Spotter reported a threat 23962 | -5/Proximity Caves | Attracted the attention of an 0b10 checkpoint 24884 | -5/Proximity Caves | Discovered exit to Factory (range 11) 24944 | -5/Proximity Caves | Entered Factory 24944 | -5/Factory | Evolved 2 slots: Utility x2 24945 | -5/Factory | Identified exit to Upper Caves 24946 | -5/Factory | Identified exit to Extension 24946 | -5/Factory | Identified exit to Factory 24947 | -5/Factory | Loaded intel: 251 machine locations 24948 | -5/Factory | Loaded intel: 28 terminal locations 25104 | -5/Factory | Fabricated Adv. Medium Treads? 25419 | -5/Factory | Entered Upper Caves 25569 | -5/Upper Caves | Spotted B-75 Beast 25879 | -5/Upper Caves | Discovered new exit (range 10) 26558 | -5/Upper Caves | Entered another Upper Caves area 26639 | -5/Upper Caves | Attracted the attention of an 0b10 checkpoint 27284 | -5/Upper Caves | Spotted B-75 Beast 27552 | -5/Upper Caves | Discovered new exit (range 12) 27592 | -5/Upper Caves | Entered Zhirov 27765 | -5/Zhirov | Discovered new exit (range 3) 27789 | -5/Zhirov | Met Zhirov 27818 | -5/Zhirov | Learned location of Quarantine (-3) 27818 | -5/Zhirov | Learned location of Testing (-2) 27818 | -5/Zhirov | Learned location of Command (-1) 27826 | -5/Zhirov | Zhirov requested help retrieving the SGEMP Prototype 27849 | -5/Zhirov | Found Alien Artifact 27849 | -5/Zhirov | Identified Integrated Dissipator 27849 | -5/Zhirov | Installed Integrated Dissipator, increased core heat dissipation (+20) 27871 | -5/Zhirov | Found Alien Artifact 27980 | -5/Zhirov | Entered Proximity Caves 28045 | -4/Proximity Caves | Lost 3 parts (2n1u) 28306 | -4/Proximity Caves | Spotted B-86 Titan 28637 | -4/Proximity Caves | Lost 4 parts (1p2u1w) 28700 | -4/Proximity Caves | Core integrity fell below 50% 28759 | -4/Proximity Caves | Discovered exit to Factory (range 10) 28847 | -4/Proximity Caves | Entered Factory 28847 | -4/Factory | Evolved 2 slots: Utility x2 28900 | -4/Factory | Build established: Golem 29128 | -4/Factory | Identified exit to Upper Caves 29128 | -4/Factory | Identified exit to Armory 29547 | -4/Factory | Incoming investigation squad redirected 29570 | -4/Factory | Identified Transdimensional Reconstructor 29570 | -4/Factory | Warped through subspace 30136 | -4/Factory | First assault squad dispatched 30219 | -4/Factory | Released all parts (14) 30223 | -4/Factory | Core integrity fell below 50% 30226 | -4/Factory | Entered Upper Caves 30249 | -4/Upper Caves | Lost 9 parts (3n4u2w) 30519 | -4/Upper Caves | Build established: Mutant 30918 | -4/Upper Caves | Build established: Golem 31006 | -4/Upper Caves | Attracted the attention of an 0b10 checkpoint 31512 | -4/Upper Caves | Discovered new exit (range 15) 31546 | -4/Upper Caves | Entered another Upper Caves area 31553 | -4/Upper Caves | Learned Research garrison access intel 31965 | -4/Upper Caves | Attracted the attention of an 0b10 checkpoint 32025 | -4/Upper Caves | Learned location of 1 exit from Proximity Caves 32355 | -4/Upper Caves | Discovered new exit (range 6) 32370 | -4/Upper Caves | Entered Warlord 32419 | -4/Warlord | System corruption cleaned by Quarantine Array 32596 | -4/Warlord | Met Warlord 32610 | -4/Warlord | Opened Warlord's prototype stash 32621 | -4/Warlord | Warlord's base attacked by MAIN.C 32628 | -4/Warlord | Found Prototype Hackware 32633 | -4/Warlord | Found Prototype Device 32633 | -4/Warlord | Identified System Purifier 32645 | -4/Warlord | Found Prototype Reactor 32645 | -4/Warlord | Identified Vortex Chain Reactor 32661 | -4/Warlord | Found Prototype Processor 32661 | -4/Warlord | Identified Exp. Targeting Computer 32971 | -4/Warlord | Warlord forces counterattacked 33253 | -4/Warlord | Spotted Striker 33296 | -4/Warlord | Warlord base infiltrated, sounded retreat 33565 | -4/Warlord | Spotted Striker 33591 | -4/Warlord | Discovered new exit (range 12) 33603 | -4/Warlord | Entered Proximity Caves 33604 | -3/Proximity Caves | Identified exit to Research 33620 | -3/Proximity Caves | Attracted the attention of an 0b10 checkpoint 33931 | -3/Proximity Caves | Build established: Derelict-Golem 34208 | -3/Proximity Caves | Core integrity fell below 20% 34234 | -3/Proximity Caves | Lost 4 parts (1n2u1w) 34492 | -3/Proximity Caves | Build established: Golem 34630 | -3/Proximity Caves | Entered Research 34630 | -3/Research | Evolved 2 slots: Utility x2 34631 | -3/Research | Loaded intel: 3 garrison access locations 35336 | -3/Research | Discovered new exit (range 4) 35598 | -3/Research | Discovered new exit (range 4) 36201 | -3/Research | Spotted B-86 Titan 36615 | -3/Research | Entered another Research area 36615 | -2/Research | Warlord forces began assault on 0b10 36615 | -2/Research | Evolved 2 slots: Utility x2 36725 | -2/Research | Research machine network offline 37378 | -2/Research | Borebot progress halted 37457 | -2/Research | Met up with Warlord 37781 | -2/Research | Warlord destroyed during the assault 37999 | -2/Research | Spotted Striker 38007 | -2/Research | Destroyed Striker 38229 | -2/Research | Spotted Executioner 38243 | -2/Research | Spotted Striker 38247 | -2/Research | Destroyed Striker 38253 | -2/Research | Destroyed Executioner 38332 | -2/Research | Spotted Striker 38333 | -2/Research | Discovered new exit (range 21) 38370 | -2/Research | Identified exit to Access 38370 | -2/Research | Entered Access 38370 | -1/Access | Evolved 2 slots: Power x1, Propulsion x1 38582 | -1/Access | Garrison activated, responded to threat 38656 | -1/Access | Discovered new exit (range 7) 38664 | -1/Access | Identified exit to Command 38665 | -1/Access | Entered Command 38785 | -1/Command | Phase Generator disabled 38841 | -1/Command | Disengaged cave seal 38841 | -1/Command | Wild derelicts emerged from the dark tunnel 39128 | -1/Command | Build established: Hacker-Mutant 39286 | -1/Command | Adv. Hacking Suite fried by hacking feedback 39403 | -1/Command | Spotted M Guard 39466 | -1/Command | Spotted M Guard 39466 | -1/Command | Spotted Combat Programmer 39467 | -1/Command | Spotted Combat Programmer 39535 | -1/Command | System corruption reached 10% 39570 | -1/Command | Lost 17 parts (4p3n6u4w) 39596 | -1/Command | Core integrity fell below 50% 39612 | -1/Command | Released all parts (10) 39622 | -1/Command | Core integrity fell below 20% 39695 | -1/Command | Destroyed by H-88 Terminator with KE Penetrator Last Messages --------------- 39654_ Acquired Centrium Wheel. 39656_ Penetrated by EMDS Slug. 39661_ Acquired 2 matter. 39661_ Penetrated by EMDS Slug. 39662_ System corrupted: Heat flow error (+152). 39665_ ALERT: Rogue bot located, Programmers report to Command Zone 9I. 39665_ Penetrated by EMDS Slug. 39666_ Acquired 69 matter. 39666_ Penetrated by Slug. 39673_ Penetrated by EMDS Slug. 39682_ Slug penetrates Wall. 39682_ Penetrated by Slug. 39683_ System corrupted: Heat flow error (+204). 39683_ EMDS Slug penetrates Wall. 39685_ Slug penetrates Wall. 39691_ Penetrated by EMDS Slug. 39691_ Slug penetrates Door. 39692_ Slug penetrates Wall. 39694_ Critical hit (Destroy). 39695_ Slug penetrates Wall. Map ----- +----------------------------------------------------+ | """ """ #??????????????????# #??????# "" | | """T""" #??????????????????####??????# " | | ##########+######????????????????????????????# | | ?????????# #??????##############?????????????# | | ?????????# #??????# #?????????????# | | ?????????#=#??????# #?????????????##### | | ???????###%######## #?????????????????? | | ???????# *%% # #?????????????????? | | ???????# %== #= #?????????????????? | | ???????# == */% #?????????????????? | | ???????# %=%[ =#! "" #?????????????????? | | ???????# []*! # """" #?????????????????? | | ???????#% %%%###### """" #?????????????????? | | ???????# %*%!#????# "" #?????????????????? | | #????### !#????# #?????????????????? | | #????? " % #????# #?????????????????? | | ######## ###################?????????????????? | | + % h ##############????????????? | | + % % # ! #????????????? | | + != h + #????????????? | | =!% #p #????????????? | | ! % # ! #????????????? | | #########+#######= # """" #????????????? | | # # # #|= # """" ??????????????? | | # # #%!! ; """" ??????????????? | | ## #!= # @ """" ??????????????? | | ## ! # # #????????????? | | ##### # # #????????????? | | ## # ]]! # #Y #????????????? | | # ]! # + #????????????? | | ## ]! # Y##############????????????? | | # # ########/### %% #?????????????????????????? | | # # #?????????????????????????? | | # T"" # #?????????????????????????? | | # """" + #?????????????????????????? | | # """" # #?????????????????????????? | | # """p # ##+#######????????????????? | | # # ???????????????? | | # ???????????????? | | # ## #%# # ???????????????? | | # # ###### ???????????????? | | # ## ##### ^ ???????????????? | | ##### ???????????????? | | # #????? ????????????????? | | # #?????? ??????????????????? | | # % """#?????????????????????????? | | # """#?????????????????????????? | | # # # # # R"#?????????????????????????? | | # # # # """#?????????????????????????? | | # "###### ## "" #?????????????????????????? | +----------------------------------------------------+ Best States ------------- Heat Dissipation 134 Energy Generation 65 Energy Capacity 1700 Matter Stores 350 Matter Capacity 350 Sight Range 23 Robot Scan Range 16 Terrain Scan Range 16 Terrain Scan Density 10 Jamming Range 12 Power Amplification 30 Additional Mass Support 20 Armor Coverage 1200 Resistance: KI 15 Resistance: TH 15 Resistance: EX 15 Resistance: EM 15 Resistance: I 15 Resistance: S 15 Resistance: P 15 Utility Shielding 33 Weapon Shielding 100 Weapon Cycling 15 Phase Shifting 8 Evasion (%) 63 Targeting Accuracy 28 Core Analysis 8 Recoil Reduction 4 Energy Filtering 30 Particle Charging 30 Offensive Hacking 42 Defensive Hacking 14 Item Schematics ----------------- Recalibrator | -7/Zion | Archive Nuclear Pulse Thruster | -7/Zion | Archive Imp. Carbon-fiber Leg | -7/Zion | Archive Imp. Cryofiber Web | -7/Zion | Archive Dynamic Insulation System | -7/Zion | Archive Adv. Heat Sink | -7/Zion | Archive Adv. System Restoration Module | -7/Zion | Archive Enh. Optical Array | -7/Zion | Archive Hvy. Treads | -7/Zion | Archive Weapon Cycler | -7/Zion | Archive Mak. Cloaking Device | -7/Zion | Archive Imp. Medium Armor Plating | -7/Zion | Archive Hvy. Plasma Cannon | -7/Zion | Archive Imp. EM Pulse Cannon | -7/Zion | Archive Hvy. Mass Driver | -7/Zion | Archive Lgt. Regenerative Plating | -6/Data Miner | Free Cld. Nuclear Pulse Thruster | -6/Data Miner | Free Prc. Matter Filter | -6/Data Miner | Free Hvy. Proton Cannon | -6/Data Miner | Free Combat Drone Bay | -6/Data Miner | Free Imp. Antigrav System | -6/Data Miner | Free Point Defense Array | -6/Data Miner | Free Hardcell Cannon | -6/Data Miner | Free Adv. Recalibrator | -6/Data Miner | Free Adv. Component Analysis Suite | -6/Data Miner | Free Assault Drone Bay | -5/Zhirov | Free Exp. Heat Sink | -5/Zhirov | Free Exp. Optical Array | -5/Zhirov | Free Imp. Arc Thrower | -5/Zhirov | Free Robot Schematics ------------------ H-55 Commando | -7/Zion | Archive K-01 Serf | -7/Zion | Archive M-28 Smith | -7/Zion | Archive R-10 Processor | -6/Data Miner | Free B-60 Warrior | -6/Data Miner | Free Y-64 Sentinel | -6/Data Miner | Free X-67 Chaingunner | -6/Data Miner | Free Fabricated ------------ Adv. Medium Treads | x2 | -5/Factory | Preloaded Alien Tech Used ----------------- Integrated Dissipator Transdimensional Reconstructor Achievements -------------- None Challenges ------------ None Game ------ Seed ArcMagneticReconfigurator Manual? 0 Play Time 03:22:40 Cumulative 642.3 hours Start 2023.04.11 @ 11:46:29 End 2023.04.11 @ 17:34:42 Sessions 1 Manual Loads 0 Difficulty Rogue Special Mode None Game No. 647 Rogue 646 Adventurer 0 Explorer 1 Win Type - Total 30 Types 21/0/6/3/0/0/0/0/0 Lore% 84 Gallery% 92 Achievement% 78 Wizard Run 0 Options --------- ASCII 0 Keyboard 1 Movement Vi Keybinds 0 Fullscreen 1 Font 18/SmallcapsGlow Map View 76x50 Tactical HUD 1 Map Filters NONE Filters NONE Steam 1 RUN: a464a0d9-44ad-451f-a402-10cd8d2d7390